Workbook

Sheet Clientes
A2: ESTEFANÍA BONILLA R
A3: 1010243810
A4: ESAU SILVA
A5: 12 DE MAYO 2020
A19: Cédula | B19: Nombres | C19: Apellidos | D19: Teléfono | E19: Dirección | F19: e-mail
A20: 198382473 | B20: Luisa | C20: Pinzón Nuñez | D20: 3108562019 | E20: cll 127#30-1 | F20: l.pinzon@yahoo.com
A21: 2984801741 | B21: Camilo | C21: Moreno Bravo | D21: 3125889032 | E21: crr12 #27a-1 | F21: c.moreno@hotmail.com
A22: 1283745791 | B22: Felipe | C22: Rodríguez | D22: 3194738475 | E22: crr48#55-20 | F22: f.rodriguez@hotmail.com
A23: 1823728472 | B23: Julian | C23: Forero Forero | D23: 3128457472 | E23: cll45#22-31 | F23: j.forero@yahoo.com
A24: 1824701202 | B24: Camila | C24: Avila Lopéz | D24: 3155482892 | E24: cll5#57-63 | F24: c.avila@hotmail.com
A25: 1010228310 | B25: Sandra | C25: Arias Bonilla | D25: 322349857 | E25: cll27a#15-55 | F25: s.arias@hotmail.com
A26: 2013948572 | B26: Sofia | C26: Díaz Ovalle | D26: 3214785798 | E26: crr7#39-23 | F26: s.diaz@hotmail.com
A27: 9912340586 | B27: Lucrecia | C27: Sampedro | D27: 3257813747 | E27: crr222#70-31 | F27: l.sampedro@hotmail.com
A28: 4432189450 | B28: Pilar | C28: Filipo Rivière | D28: 3271937491 | E28: cll63#40-22 | F28: p.filipo@hotmail.com
A29: 7843215830 | B29: Esteban | C29: Montes Olivo | D29: 3159178427 | E29: crr63#24a-14 | F29: e.montes@yahoo.com

Sheet T Dinámica Clientes
A2: Nombres | B2: (Todas)
A3: Apellidos | B3: (Todas)
D4: LA CLAVE PARA DESPROTEGER TODAS LAS HOJAS ES 98765
A5: Etiquetas de fila | B5: Suma de Cédula
A6: 322349857 | B6: 1010228310
A7: cll27a#15-55 | B7: 1010228310
A8: 3108562019 | B8: 198382473
A9: cll 127#30-1 | B9: 198382473
A10: l.pinzon@yahoo.com | B10: 198382473
A11: 3125889032 | B11: 2984801741
A12: crr12 #27a-1 | B12: 2984801741 | D12: Al filtrar por el nombre la tabla dinámica arroja los datos de ese cliente, su cédula, dirección, correo y teléfono; igual ocurre con el apellido. También puedo filtrar por el número de celular.
A13: c.moreno@hotmail.com | B13: 2984801741
A14: 3128457472 | B14: 1823728472
A15: cll45#22-31 | B15: 1823728472
A16: j.forero@yahoo.com | B16: 1823728472
A17: 3155482892 | B17: 1824701202
A18: cll5#57-63 | B18: 1824701202
A19: c.avila@hotmail.com | B19: 1824701202
A20: 3159178427 | B20: 7843215830
A21: crr63#24a-14 | B21: 7843215830
A22: e.montes@yahoo.com | B22: 7843215830
A23: 3194738475 | B23: 1283745791
A24: crr48#55-20 | B24: 1283745791
A25: f.rodriguez@hotmail.com | B25: 1283745791
A26: 3214785798 | B26: 2013948572
A27: crr7#39-23 | B27: 2013948572
A28: s.diaz@hotmail.com | B28: 2013948572
A29: 3257813747 | B29: 9912340586
A30: crr222#70-31 | B30: 9912340586
A31: l.sampedro@hotmail.com | B31: 9912340586
A32: 3271937491 | B32: 4432189450
A33: cll63#40-22 | B33: 4432189450
A34: p.filipo@hotmail.com | B34: 4432189450
A35: Total general | B35: 33327282427

Sheet Macro Clientes
B3: Cédula | C3: Nombre | D3: Apellido | E3: Dirección | F3: Teléfono
C18: La Macro realizada contiene la información de los clientes. Automatiza la información por medio de la ejecución de una tabla que prestablece los datos requeridos como la cédula, los nombres y apellidos, la dirección y el teléfono de los clientes. Con solo teclear Contro+s la tabla se realiza automáticamente o también se puede hacer en la parte de revisar -> macros -> ver macros y se elige la que uno necesite. Luego la tabla se genera sola y queda lista para ingresar los datos de los clientes.

Sheet Vendedores
B13: Cédula | C13: Nombres | D13: Apellidos | E13: Ventas | F13: Mes Venta
B14: 60295790 | C14: Marta Ines | D14: Ramírez Díaz | E14: =7700000-280000 -> 7420000 | F14: enero
B15: 792674111 | C15: Jose Felipe | D15: Quintero Suarez | E15: 6750000 | F15: febrero
B16: 83947237 | C16: Mariana | D16: Caballero Castro | E16: 7700000 | F16: marzo
B17: 38230723 | C17: Cristian | D17: Cristancho Pinos | E17: 6000000 | F17: abril
B18: 82739328 | C18: Sofia | D18: Cepeda Acevedo | E18: 8870000 | F18: mayo
B19: 1010284501 | C19: Juliana | D19: Forero Rincón | E19: 5610000 | F19: junio
B20: 89489724 | C20: Camilo | D20: Cruz Pulido | E20: 7780000 | F20: julio
B21: 48238209 | C21: Luisa | D21: Ovalle Yaneth | E21: 5300000 | F21: agosto
B22: 32847229 | C22: Valentina | D22: Moreno Cano | E22: 6620000 | F22: septiembre
B23: 28428231 | C23: Sergio | D23: Bolivar Torres | E23: 6820000 | F23: octubre
B24: 60295790 | C24: Marta Ines | D24: Ramírez Díaz | E24: =7700000-280000 -> 7420000 | F24: noviembre
B25: 792674111 | C25: Jose Felipe | D25: Quintero Suarez | E25: 6750000 | F25: diciembre
B26: 83947237 | C26: Mariana | D26: Caballero Castro | E26: 7700000 | F26: enero
B27: 38230723 | C27: Cristian | D27: Cristancho Pinos | E27: 6000000 | F27: febrero
B28: 82739328 | C28: Sofia | D28: Cepeda Acevedo | E28: 8870000 | F28: marzo
B29: 1010284501 | C29: Juliana | D29: Forero Rincón | E29: 5610000 | F29: abril
B30: 89489724 | C30: Camilo | D30: Cruz Pulido | E30: 7780000 | F30: mayo
B31: 48238209 | C31: Luisa | D31: Ovalle Yaneth | E31: 5300000 | F31: junio
B32: 32847229 | C32: Valentina | D32: Moreno Cano | E32: 6620000 | F32: julio
B33: 28428231 | C33: Sergio | D33: Bolivar Torres | E33: 6820000 | F33: agosto
B34: 60295790 | C34: Marta Ines | D34: Ramírez Díaz | E34: =7700000-280000 -> 7420000 | F34: septiembre
B35: 792674111 | C35: Jose Felipe | D35: Quintero Suarez | E35: 6750000 | F35: octubre
B36: 83947237 | C36: Mariana | D36: Caballero Castro | E36: 7700000 | F36: noviembre
B37: 38230723 | C37: Cristian | D37: Cristancho Pinos | E37: 6000000 | F37: diciembre
B38: 82739328 | C38: Sofia | D38: Cepeda Acevedo | E38: 8870000 | F38: enero
B39: 1010284501 | C39: Juliana | D39: Forero Rincón | E39: 5610000 | F39: febrero
B40: 89489724 | C40: Camilo | D40: Cruz Pulido | E40: 7780000 | F40: marzo
B41: 48238209 | C41: Luisa | D41: Ovalle Yaneth | E41: 5300000 | F41: abril
B42: 32847229 | C42: Valentina | D42: Moreno Cano | E42: 6620000 | F42: mayo
B43: 28428231 | C43: Sergio | D43: Bolivar Torres | E43: 6820000 | F43: junio

Sheet T Dinámica Vendedores
A2: Mes Venta | B2: (Todas)
A3: Cédula | B3: (Todas)
A5: Etiquetas de fila | B5: Suma de Ventas
A6: Camilo | B6: 23340000
A7: Cruz Pulido | B7: 23340000
A8: Cristian | B8: 18000000 | D8: Al aplicar los filtros por mes de ventas y/o cédula puedo encontrar los datos de los vendedores con nombres y apellidos y el total de ventas que realizaron en el año
A9: Cristancho Pinos | B9: 18000000
A10: Jose Felipe | B10: 20250000
A11: Quintero Suarez | B11: 20250000
A12: Juliana | B12: 16830000
A13: Forero Rincón | B13: 16830000
A14: Luisa | B14: 15900000
A15: Ovalle Yaneth | B15: 15900000
A16: Mariana | B16: 23100000
A17: Caballero Castro | B17: 23100000
A18: Marta Ines | B18: 22260000
A19: Ramírez Díaz | B19: 22260000
A20: Sergio | B20: 20460000
A21: Bolivar Torres | B21: 20460000
A22: Sofia | B22: 26610000
A23: Cepeda Acevedo | B23: 26610000
A24: Valentina | B24: 19860000
A25: Moreno Cano | B25: 19860000
A26: Total general | B26: 206610000

Sheet Producto
A14: Código | B14: NOMBRE DEL PRODUCTO | C14: VALOR UNI. | D14: N° Ventas | E14: Valor ventas
A15: LAC.10001 | B15: LECHE ENTERA 1L. | C15: 2000 | D15: 8743 | E15: =C15*D15 -> 17486000
A16: LAC. 10002 | B16: LECHE DESCREMADA 1.L | C16: 2500 | D16: 8193 | E16: =C16*D16 -> 20482500
A17: LAC.10003 | B17: QUESO DOBLE CREMA | C17: 4500 | D17: 6000 | E17: 27000000
A18: LAC. 10004 | B18: QUESO MOZARELLA | C18: 5500 | D18: 5970 | E18: 32835000
A19: LAC. 10005 | B19: QUESO PAIPA | C19: 4700 | D19: 6028 | E19: 28331600
A20: LAC. 10006 | B20: QUESO CAMPESINO | C20: 4300 | D20: 6390 | E20: 27477000
A21: LAC. 10007 | B21: YOGURT FRESA 200ML | C21: 2000 | D21: 6190 | E21: 12380000
A22: LAC. 10008 | B22: YOGURT MORA 200ML | C22: 2000 | D22: 5634 | E22: 11268000
A23: LAC. 10009 | B23: YOGURT MELOCOTÓN 200ML | C23: 2300 | D23: 5789 | E23: 13314700
A24: LAC. 10010 | B24: KUMIS 200ML | C24: 2700 | D24: 5973 | E24: 16127100

Sheet formato factura
B18: Fecha | C18: 2020-04-28 | E18: Fac No. | F18: 525970
B19: Nombre | C19: =CONCATENATE(VLOOKUP(C20,Clientes,2,FALSE)," ",(VLOOKUP(C20,Clientes,3,FALSE))) -> Sandra Arias Bonilla
B20: Cédula | C20: 1010228310
B21: Teléfono | C21: =VLOOKUP(C20, Clientes,4,FALSE) -> 322349857
B22: Vendedor | C22: =CONCATENATE(VLOOKUP(F22,VENDEDORES,2,FALSE)," ",(VLOOKUP(F22,VENDEDORES,3,FALSE))) -> Cristian Cristancho Pinos | E22: C.C. | F22: 38230723
B24: ID. Producto | C24: Descripción | E24: Valor Unit. | F24: Cantidad | G24: Total
B25: LAC.10001 | C25: =IFERROR(VLOOKUP(B25,PRODUCTO,2,FALSE),"") -> LECHE ENTERA 1L. | E25: =INT(VLOOKUP(B25,PRODUCTO,3)) -> 2700 | F25: 130 | G25: =IFERROR(E25*F25,"") -> 351000
B26: LAC. 10007 | C26: YOGURT FRESA 200ML | E26: =VLOOKUP(B26,PRODUCTO,3) -> 2000 | F26: 50 | G26: =IFERROR(E26*F26,"") -> 100000
B27: LAC.10003 | C27: QUESO DOBLE CREMA | E27: 2700 | F27: 110 | G27: 297000
B28: LAC. 10002 | C28: =IFERROR(VLOOKUP(B28,PRODUCTO,2,FALSE),"") -> LECHE DESCREMADA 1.L | E28: 2500 | F28: 85 | G28: 212500
B29: LAC. 10005 | C29: =IFERROR(VLOOKUP(B29,PRODUCTO,2,FALSE),"") -> QUESO PAIPA | E29: 4700 | F29: 50 | G29: 235000
B30: LAC. 10004 | C30: QUESO MOZARELLA | E30: 2500 | F30: 55 | G30: 137500
B31: LAC. 10006 | C31: =IFERROR(VLOOKUP(B31,PRODUCTO,2,FALSE),"") -> QUESO CAMPESINO | E31: 4300 | F31: 60 | G31: 258000
B32: LAC. 10008 | C32: YOGURT MORA 200ML | E32: 2000 | F32: 65 | G32: 130000
B33: LAC. 10009 | C33: YOGURT MELOCOTÓN 200ML | E33: 2300 | F33: 65 | G33: 149500
B34: LAC. 10010 | C34: KUMIS 200ML | E34: 2700 | F34: 50 | G34: 135000
E35: Subtotal | G35: =SUM(G25:G34) -> 2005500
E36: IVA 19% | G36: =G35*19% -> 381045
E37: Total | G37: =SUM(G35:G36) -> 2386545

Sheet Informe
A9: INFORME VENTAS ANUAL 2019
J10: INFORME VENDEDORES 2019 | R10: INFORME PRODUCTO MAYOR DEMANDA 2019
B11: VENTAS | J11: ID Vendedores | L11: Nombres Apellidos | N11: Ventas | R11: Código | S11: Producto | V11: Ventas
B12: MES | C12: TOTALES | J12: 60295790 | L12: =CONCATENATE(VLOOKUP(J12,VENDEDORES,2,FALSE), " ", VLOOKUP(J12,VENDEDORES,3,FALSE)) -> Marta Ines Ramírez Díaz | N12: =SUMIF(cc_vendedores,J12, mes_ventas) -> 22260000 | R12: LAC.10001 | S12: =VLOOKUP(R12,PRODUCTO,2,FALSE) -> LECHE ENTERA 1L. | V12: =Producto!E15 -> 17486000
B13: Enero | C13: =Vendedores!E14+Vendedores!E26+Vendedores!E38 -> 23990000 | J13: 792674111 | L13: Jose Felipe Quintero Suarez | N13: =SUMIF(cc_vendedores,J13, mes_ventas) -> 20250000 | R13: LAC. 10005 | S13: =VLOOKUP(R13,PRODUCTO,2,FALSE) -> QUESO PAIPA | V13: =Producto!E19 -> 28331600
B14: Febrero | C14: =Vendedores!E15+Vendedores!E27+Vendedores!E39 -> 18360000 | J14: 83947237 | L14: Mariana Caballero Castro | N14: 23100000 | R14: LAC. 10006 | S14: =VLOOKUP(R14,PRODUCTO,2,FALSE) -> QUESO CAMPESINO | V14: =Producto!E20 -> 27477000
B15: Marzo | C15: =Vendedores!E16+Vendedores!E28+Vendedores!E40 -> 24350000 | J15: 38230723 | L15: Cristian Cristancho Pinos | N15: 18000000 | R15: LAC. 10007 | S15: =VLOOKUP(R15,PRODUCTO,2,FALSE) -> YOGURT FRESA 200ML | V15: =Producto!E21 -> 12380000
B16: Abril | C16: =Vendedores!E17+Vendedores!E29+Vendedores!E41 -> 16910000 | J16: 82739328 | L16: Sofia Cepeda Acevedo | N16: 26610000
B17: Mayo | C17: =Vendedores!E18+Vendedores!E30+Vendedores!E42 -> 23270000 | J17: 1010284501 | L17: Juliana Forero Rincón | N17: 16830000
B18: Junio | C18: =Vendedores!E19+Vendedores!E31+Vendedores!E43 -> 17730000 | J18: 89489724 | L18: Camilo Cruz Pulido | N18: 23340000
B19: Julio | C19: =Vendedores!E20+Vendedores!E32 -> 14400000 | J19: 48238209 | L19: Luisa Ovalle Yaneth | N19: 15900000
B20: Agosto | C20: =Vendedores!E21+Vendedores!E33 -> 12120000 | J20: 32847229 | L20: Valentina Moreno Cano | N20: 19860000
B21: Septiembre | C21: =Vendedores!E22+Vendedores!E34 -> 14040000 | J21: 28428231 | L21: Sergio Bolivar Torres | N21: 20460000
B22: Octubre | C22: =Vendedores!E23+Vendedores!E35+Vendedores!E47 -> 13570000 | L22: TOTAL | N22: =SUM(N12:O21) -> 206610000
B23: Noviembre | C23: =Vendedores!E24+Vendedores!E36+Vendedores!E48 -> 15120000
B24: Diciembre | C24: =Vendedores!E25+Vendedores!E37+Vendedores!E49 -> 12750000
B25: Total | C25: =SUM(C13:C24) -> 206610000
